fUSD/lending_fUSD_20251118
["ID","MTS","AMOUNT","RATE_DAILY","PERIOD"]
[394355455,1763484518676,191.168552,0.00041677,120]
[394355456,1763484518724,155.565103,0.00041677,120]
[394355457,1763484519205,191.168545,0.00041677,120]
[394355461,1763484549002,151.0,0.00041677,120]
[394355462,1763484549438,151.0,0.00041677,120]
[394355463,1763484549797,151.0,0.00041677,120]
[394355464,1763484550081,151.0,0.00041677,120]
[394355465,1763484550391,151.0,0.00041677,120]
[394355466,1763484550690,151.0,0.00041677,120]
[394355467,1763484551595,151.0,0.00041677,120]
[394355468,1763484551891,151.0,0.00041677,120]
[394355469,1763484553107,151.0,0.00041677,120]
[394355470,1763484553416,151.0,0.00041677,120]
[394355472,1763484553693,151.0,0.00041677,120]
[394355476,1763484566832,151.0,0.00041677,120]
[394355477,1763484567170,151.0,0.00041677,120]
[394355478,1763484567493,151.0,0.00041677,120]
[394355479,1763484568035,151.0,0.00041677,120]
[394355480,1763484568366,151.0,0.00041677,120]
[394355481,1763484568657,184.658081,0.00041677,120]
[394355499,1763484631474,-287.83960336,0.000164,2]
[394355503,1763484631485,-250.0,0.00016426,2]
[394355506,1763484631496,-250.0,0.00016452,2]
[394355509,1763484631507,-250.0,0.00016485,2]
[394355511,1763484631517,-298.52414201,0.00016503,2]
[394355512,1763484631528,-300.0,0.00016504,2]
[394355513,1763484631538,-300.0,0.00016504,2]
[394355514,1763484631548,-300.0,0.00016633,2]
[394355515,1763484631560,-300.0,0.00016633,2]
[394355516,1763484631570,-1200.0,0.00016633,2]
[394355517,1763484631580,-285522.80504361,0.00016634,2]
[394355518,1763484631592,-377.772,0.00016634,2]
[394355519,1763484631608,-169289.93557383,0.00016634,2]
[394355520,1763484631693,-244290.17697058,0.00016634,2]
[394355521,1763484631705,-35161.747284,0.00016634,2]
[394355522,1763484631717,-25357.56312798,0.00016634,2]
[394355523,1763484631726,-200.0,0.00016668,2]
[394355524,1763484631736,-500.0,0.00016673,2]
[394355525,1763484631746,-554.1976215,0.00016673,2]
[394355526,1763484631756,-500.0,0.00016673,2]
[394355527,1763484631765,-483.35874302,0.00016673,2]
[394355528,1763484631775,-503.71785515,0.00016673,2]
[394355529,1763484631785,-500.47144105,0.00016673,2]
[394355530,1763484631795,-500.0,0.00016673,2]
[394355532,1763484631810,-500.0,0.00016673,2]
[394355534,1763484631820,-500.0,0.00016673,2]
[394355536,1763484631830,-500.0,0.000167,2]
[394355538,1763484631840,-1200.0,0.00016732,2]
[394355540,1763484631851,-300.0,0.00016732,2]
[394355543,1763484631864,-550.0,0.00016733,2]
[394355545,1763484631875,-150.0,0.00016734,2]
[394355547,1763484631885,-35486.19620818,0.00016734,2]
[394355565,1763484637501,-500.0,0.000163,2]
[394355566,1763484637511,-47407.6130865,0.00016734,2]
[394355585,1763484639488,-3473.20070532,0.00016734,2]
[394355586,1763484639498,-88.79927468,0.00016773,2]
[394355587,1763484639510,-519.57771435,0.00016773,2]
[394355588,1763484639520,-385.96078134,0.00016773,2]
[394355589,1763484639530,-500.0,0.00016773,2]
[394355590,1763484639540,-504.57461567,0.00016773,2]
[394355591,1763484639550,-518.75704326,0.00016773,2]
[394355592,1763484639560,-166.92013795,0.00016773,2]
[394355593,1763484639570,-92.01208586,0.00016773,2]
[394355594,1763484639583,-409.3357695,0.00016773,2]
[394355595,1763484639592,-500.0,0.00016773,2]
[394355596,1763484639602,-190.62829127,0.00016773,2]
[394355597,1763484639614,-312.5306204,0.00016773,2]
[394355598,1763484639626,-500.0,0.00016773,2]
[394355599,1763484639636,-125.1325502,0.00016773,2]
[394355600,1763484639804,-374.8674498,0.00016773,2]
[394355601,1763484639818,-501.8690547,0.00016773,2]
[394355602,1763484639827,-3837.31,0.00016797,2]
[394355603,1763484639837,-1082.054,0.000168,2]
[394355604,1763484639847,-9762.92837984,0.000168,2]
[394355605,1763484639857,-33186.8393,0.000168,2]
[394355607,1763484639868,-1000.0,0.000168,2]
[394355609,1763484639878,-10810.78,0.00016815,2]
[394355610,1763484639887,-500.0,0.00016873,2]
[394355611,1763484639897,-500.0,0.00016873,2]
[394355612,1763484639907,-502.33367839,0.00016873,2]
[394355613,1763484639917,-500.0,0.00016873,2]
[394355614,1763484639926,-500.0,0.00016873,2]
[394355615,1763484639936,-500.0,0.00016873,2]
[394355616,1763484639951,-500.0,0.00016873,2]
[394355617,1763484639977,-500.0,0.00016873,2]
[394355618,1763484639993,-500.0,0.00016873,2]
[394355619,1763484640005,-363.62576228,0.00016873,2]
[394355620,1763484640016,-500.0,0.00016873,2]
[394355621,1763484640028,-502.06530095,0.00016873,2]
[394355622,1763484640039,-500.0,0.00016899,2]
[394355623,1763484640049,-500.0,0.00016899,2]
[394355624,1763484640060,-500.0,0.00016899,2]
[394355625,1763484640073,-500.0,0.00016899,2]
[394355626,1763484640084,-500.0,0.00016899,2]
[394355627,1763484640095,-339.17079702,0.00016899,2]
[394355628,1763484640106,-500.0,0.00016899,2]
[394355629,1763484640117,-598.77021601,0.00016899,2]
[394355630,1763484640129,-500.0,0.00016899,2]
[394355631,1763484640140,-500.0,0.00016899,2]
[394355632,1763484640151,-500.0,0.00016899,2]
[394355633,1763484640161,-500.0,0.00016899,2]
[394355634,1763484640172,-500.0,0.00016899,2]
[394355635,1763484640183,-500.0,0.00016899,2]
[394355636,1763484640193,-189.14996204,0.00016899,2]
[394355637,1763484640204,-258.36227895,0.00016899,2]
[394355638,1763484640215,-500.0,0.00016899,2]
[394355639,1763484640226,-500.0,0.00016899,2]
[394355640,1763484640235,-500.0,0.00016899,2]
[394355641,1763484640246,-430.2992187,0.00016899,2]
[394355642,1763484640257,-500.0,0.00016899,2]
[394355643,1763484640268,-500.0,0.00016899,2]
[394355644,1763484640278,-500.0,0.00016899,2]
[394355645,1763484640289,-500.0,0.00016899,2]
[394355646,1763484640299,-500.0,0.00016899,2]
[394355647,1763484640309,-623.1633759,0.00016899,2]
[394355648,1763484640321,-500.0,0.00016899,2]
[394355649,1763484640330,-500.0,0.00016899,2]
[394355650,1763484640340,-500.0,0.00016899,2]
[394355651,1763484640350,-500.0,0.00016899,2]
[394355652,1763484640361,-500.0,0.00016899,2]
[394355653,1763484640371,-500.0,0.00016899,2]
[394355654,1763484640381,-500.0,0.00016899,2]
[394355655,1763484640391,-500.0,0.00016899,2]
[394355656,1763484640401,-500.0,0.00016899,2]
[394355657,1763484640411,-500.0,0.00016899,2]
[394355658,1763484640421,-557.48703647,0.00016899,2]
[394355659,1763484640430,-575.73308324,0.00016899,2]
[394355660,1763484640441,-859.14,0.00016899,2]
[394355661,1763484640451,-500.0,0.00016899,2]
[394355662,1763484640461,-500.0,0.00016899,2]
[394355663,1763484640471,-634.59256275,0.00016899,2]
[394355664,1763484640481,-500.0,0.00016899,2]
[394355665,1763484640491,-271.02656522,0.00016899,2]
[394355666,1763484640501,-379.37,0.00016899,2]
[394355667,1763484640511,-500.0,0.00016899,2]
[394355668,1763484640521,-303.74647563,0.00016899,2]
[394355669,1763484640531,-500.0,0.00016899,2]
[394355670,1763484640542,-500.0,0.00016899,2]
[394355671,1763484640552,-500.0,0.00016899,2]
[394355672,1763484640563,-500.0,0.00016899,2]
[394355673,1763484640574,-500.0,0.00016899,2]
[394355674,1763484640584,-500.0,0.00016899,2]
[394355675,1763484640594,-500.0,0.00016899,2]
[394355676,1763484640605,-500.0,0.00016899,2]
[394355677,1763484640614,-527.02812988,0.00016899,2]
[394355678,1763484640624,-500.0,0.00016899,2]
[394355679,1763484640634,-500.0,0.00016899,2]
[394355680,1763484640644,-368.89433777,0.00016899,2]
[394355681,1763484640654,-551.84940414,0.00016899,2]
[394355682,1763484640664,-33327.7153,0.000169,2]
[394355683,1763484640673,-1000.0,0.000169,2]
[394355684,1763484640683,-859.14,0.00017173,2]
[394355685,1763484640693,-1000.0,0.00017221,2]
[394355686,1763484640702,-1000.0,0.00017221,2]
[394355687,1763484640712,-184.18282033,0.00017221,2]
[394355688,1763484640722,-1000.0,0.00017221,2]
[394355689,1763484640732,-1000.0,0.00017321,2]
[394355690,1763484640742,-943.44977622,0.00017321,2]
[394355691,1763484640752,-745.44865078,0.00017321,2]
[394355692,1763484640762,-500.0,0.00017321,2]
[394355693,1763484640771,-500.0,0.0001742,2]
[394355694,1763484640781,-500.0,0.00017421,2]
[394355695,1763484640791,-500.0,0.00017421,2]
[394355696,1763484640801,-1001.59898174,0.00017421,2]
[394355697,1763484640811,-500.99618926,0.00017421,2]
[394355698,1763484640821,-1000.0,0.00017421,2]
[394355699,1763484640831,-422.04759268,0.00017421,2]
[394355700,1763484640840,-501.76436207,0.00017421,2]
[394355701,1763484640850,-500.0,0.00017421,2]
[394355702,1763484640860,-859.14,0.00017447,2]
[394355703,1763484640869,-166.66,0.00017518,2]
[394355704,1763484640880,-859.14,0.00017721,2]
[394355705,1763484640889,-210.97205841,0.00017721,2]
[394355706,1763484640898,-1500.0,0.00017768,2]
[394355707,1763484640909,-345.86721143,0.00017768,2]
[394355708,1763484640918,-162.34732619,0.00017773,2]
[394355709,1763484640929,-8847.91014959,0.000178,2]
[394355710,1763484640940,-700.0,0.000178,6]
[394355711,1763484640951,-1437.30947474,0.00017802,2]
[394355712,1763484640962,-500.0,0.00017829,2]
[394355713,1763484640973,-250.0,0.00017837,2]
[394355714,1763484640983,-578.29681918,0.00017873,2]
[394355715,1763484640993,-161.13794128,0.00017873,2]
[394355716,1763484641004,-500.0,0.00017873,2]
[394355717,1763484641014,-501.0162978,0.00017873,2]
[394355718,1763484641026,-500.0,0.00017873,2]
[394355719,1763484641035,-500.0,0.00017873,2]
[394355720,1763484641046,-500.0,0.00017873,2]
[394355721,1763484641058,-553.19138914,0.00017873,2]
[394355722,1763484641070,-300.0,0.00017873,2]
[394355723,1763484641081,-500.0,0.00017873,2]
[394355724,1763484641091,-178.99807806,0.00017873,2]
[394355725,1763484641101,-500.0,0.00017873,2]
[394355726,1763484641111,-500.0,0.00017873,2]
[394355727,1763484641121,-503.32747912,0.00017873,2]
[394355728,1763484641131,-500.0,0.00017873,2]
[394355729,1763484641140,-8841.22424811,0.00017892,2]
[394355730,1763484641154,-1295.15944958,0.00017892,2]
[394355736,1763484643069,-4102.94303108,0.00017892,2]
[394355737,1763484643082,-4679.49327123,0.00017892,2]
[394355738,1763484643094,-1100.0,0.000179,6]
[394355739,1763484643106,-399.11108337,0.00017948,2]
[394355740,1763484643117,-1004.36442278,0.00017968,2]
[394355741,1763484643127,-2828.5854306,0.00017984,2]
[394355742,1763484643138,-619.40357553,0.0001799,2]
[394355743,1763484643149,-859.14,0.00017995,2]
[394355744,1763484643161,-500.0,0.00017999,2]
[394355745,1763484643172,-500.0,0.00017999,2]
[394355746,1763484643183,-500.0,0.00017999,2]
[394355747,1763484643194,-500.0,0.00017999,2]
[394355748,1763484643205,-500.0,0.00017999,2]
[394355749,1763484643216,-500.0,0.00017999,2]
[394355750,1763484643227,-500.0,0.00017999,2]
[394355751,1763484643239,-500.0,0.00017999,2]
[394355752,1763484643250,-247.33239211,0.00017999,2]
[394355753,1763484643261,-4262.56982438,0.00018,2]
[394355754,1763484643275,-469809.99999989,0.00018,2]
[394355769,1763484645662,-684.39999965,0.00018,2]
[394355860,1763484742425,166.66,0.00015897,2]
[394356077,1763484791852,183.4671138,0.00016633,5]
[394356132,1763484933700,50000.0,0.00041677,30]
[394356133,1763484938341,50000.0,0.00041677,31]
[394356134,1763484948579,50000.0,0.00041677,32]
[394356136,1763484989624,47000.0,0.00041677,32]
[394356137,1763485026323,288.25,0.00025101,120]
[394356142,1763485413764,-533.80943876,0.00016099,2]
[394356144,1763485523776,152.19,8.367e-05,2]
[394356145,1763485524074,152.19,9.064e-05,2]
[394356146,1763485524358,152.19,9.761e-05,2]
[394356147,1763485524581,152.19,0.00010459,2]
[394356148,1763485524794,152.19,0.00011156,2]
[394356149,1763485525008,152.19,0.00011853,2]
[394356150,1763485525212,152.19,0.0001255,2]
[394356151,1763485525552,152.19,0.00013248,2]
[394356152,1763485526151,152.19,0.00013945,2]
[394356153,1763485526366,152.19,0.00014642,2]
[394356154,1763485526580,152.19,0.00015339,2]
[394356157,1763485535518,-152.19,0.00016036,2]
[394356158,1763485648820,400.0,0.000169,6]
[394356173,1763485792678,999.0,0.00016734,3]
[394356187,1763485831653,-1200.0,0.00016198,2]
[394356189,1763485831664,-300.0,0.00016198,2]
[394356191,1763485831673,-195.0,0.00016198,2]
[394356192,1763485831683,-250.0,0.00016199,2]
[394356194,1763485831693,-300.0,0.00016199,2]
[394356195,1763485831707,-300.0,0.00016199,2]
[394356196,1763485831717,-1200.0,0.00016199,2]
[394356197,1763485831727,-300.0,0.00016199,2]
[394356198,1763485831737,-15161.39566529,0.000162,2]
[394356199,1763485831746,-195.0,0.00016205,2]
[394356200,1763485831764,-166.66,0.00016232,2]
[394356201,1763485831779,-374.7770593,0.000164,2]
[394356202,1763485831794,-4611.5,0.00016438,2]
[394356203,1763485831807,-550.0,0.00016533,2]
[394356204,1763485831820,-1000.0,0.00016534,2]
[394356205,1763485831833,-3895.68224734,0.00016534,2]
[394356211,1763485832027,-1454.20181919,0.00016534,2]
[394356216,1763485832047,-305.62343923,0.00016534,2]
[394356220,1763485832062,-257.87596969,0.00016534,2]
[394356225,1763485832081,-1808.20460056,0.00016534,2]
[394356239,1763485832208,-25611.00762399,0.00016534,2]
[394356241,1763485832220,-8322.2334,0.00016534,2]
[394356244,1763485832230,-1000.0,0.00016534,2]
[394356246,1763485832243,-2500.0,0.00016534,2]
[394356248,1763485832255,-166.66,0.00016567,2]
[394356250,1763485832266,-15166.77048455,0.00016573,2]
[394356253,1763485832280,-339.67569384,0.00016573,2]
[394356255,1763485832291,-500.0,0.00016633,2]
[394356257,1763485832303,-500.0,0.00016633,2]
[394356259,1763485832315,-500.0,0.00016633,2]
[394356262,1763485832329,-245.47636787,0.00016633,2]
[394356264,1763485832343,-500.0,0.00016633,2]
[394356267,1763485832357,-609.30044477,0.00016633,2]
[394356269,1763485832371,-500.0,0.00016633,2]
[394356271,1763485832383,-500.0,0.00016633,2]
[394356274,1763485832398,-500.0,0.00016633,2]
[394356276,1763485832410,-500.0,0.00016633,2]
[394356278,1763485832421,-500.0,0.00016633,2]
[394356280,1763485832431,-500.0,0.00016633,2]
[394356282,1763485832443,-532.64325832,0.00016633,2]
[394356284,1763485832453,-500.0,0.00016633,2]
[394356287,1763485832465,-500.0,0.00016633,2]
[394356289,1763485832475,-500.0,0.00016633,2]
[394356291,1763485832486,-440.20252509,0.00016633,2]
[394356294,1763485832499,-500.0,0.00016633,2]
[394356296,1763485832513,-500.0,0.00016633,2]
[394356298,1763485832527,-491.57867457,0.00016633,2]
[394356300,1763485832538,-500.0,0.00016633,2]
[394356302,1763485832549,-500.0,0.00016633,2]
[394356304,1763485832559,-500.0,0.00016633,2]
[394356307,1763485832570,-751.75,0.00016633,2]
[394356309,1763485832580,-500.0,0.00016633,2]
[394356311,1763485832591,-336.03492657,0.00016633,2]
[394356313,1763485832601,-500.0,0.00016633,2]
[394356315,1763485832613,-500.0,0.00016633,2]
[394356318,1763485832625,-500.0,0.00016633,2]
[394356320,1763485832636,-500.0,0.00016633,2]
[394356322,1763485832648,-500.0,0.00016633,2]
[394356324,1763485832660,-500.0,0.00016633,2]
[394356327,1763485832671,-640.7495824,0.00016633,2]
[394356329,1763485832685,-500.0,0.00016673,2]
[394356331,1763485832695,-500.0,0.00016673,2]
[394356333,1763485832706,-500.0,0.00016673,2]
[394356335,1763485832716,-152.19,0.00016734,2]
[394356337,1763485832726,-2000.0,0.00016734,2]
[394356339,1763485832737,-255.85,0.00016734,2]
[394356341,1763485832748,-2171.79,0.00016734,2]
[394356346,1763485832773,-266.18,0.00016734,2]
[394356348,1763485832792,-288.25,0.00016734,2]
[394356350,1763485832805,-563.71,0.00016734,2]
[394356353,1763485832819,-1000.0,0.00016734,2]
[394356355,1763485832832,-551.91,0.00016734,2]
[394356358,1763485832846,-500.0,0.00016899,2]
[394356360,1763485832859,-500.0,0.00016899,2]
[394356363,1763485832872,-500.0,0.00016899,2]
[394356365,1763485832885,-500.0,0.00016899,2]
[394356368,1763485832899,-500.0,0.00016899,2]
[394356370,1763485832912,-303.54666137,0.00016899,2]
[394356372,1763485832924,-166.66,0.00016901,2]
[394356375,1763485832936,-751.75,0.00016907,2]
[394356377,1763485832948,-250.0,0.00017,2]
[394356379,1763485832961,-751.75,0.00017181,2]
[394356382,1763485832972,-503.08548184,0.00017221,2]
[394356384,1763485832984,-571.23344314,0.00017221,2]
[394356386,1763485832996,-166.66,0.00017236,2]
[394356388,1763485833008,-500.0,0.0001742,2]
[394356391,1763485833023,-751.75,0.00017455,2]
[394356393,1763485833034,-166.66,0.00017571,2]
[394356395,1763485833046,-749.0,0.00017706,2]
[394356398,1763485833058,-342.0,0.00017707,2]
[394356400,1763485833071,-420.0,0.00017707,2]
[394356402,1763485833083,-222.2989347,0.00017712,2]
[394356404,1763485833095,-751.75,0.00017729,2]
[394356407,1763485833113,-1437.3094747,0.00017769,2]
[394356410,1763485833128,-1680.0,0.00017796,2]
[394356412,1763485833141,-800.0,0.000178,6]
[394356415,1763485833153,-250.0,0.00017818,2]
[394356417,1763485833166,-300.0,0.00017818,2]
[394356419,1763485833179,-195.0,0.00017818,2]
[394356422,1763485833192,-300.0,0.00017818,2]
[394356424,1763485833205,-250.0,0.00017818,2]
[394356426,1763485833217,-300.0,0.00017818,2]
[394356429,1763485833230,-300.0,0.00017818,2]
[394356431,1763485833242,-300.0,0.00017818,2]
[394356433,1763485833254,-195.0,0.00017818,2]
[394356436,1763485833267,-2426.51365,0.0001782,2]
[394356438,1763485833279,-210.0,0.00017833,2]
[394356440,1763485833291,-12897.9278877,0.00017884,2]
[394356442,1763485833304,-162.73406515,0.00017887,2]
[394356445,1763485833316,-876.00445335,0.000179,2]
[394356447,1763485833329,-1300.0,0.000179,6]
[394356449,1763485833341,-502.03384973,0.00017973,2]
[394356451,1763485833355,-503.42110984,0.00017973,2]
[394356454,1763485833366,-503.69110106,0.00017973,2]
[394356456,1763485833378,-500.0,0.00017973,2]
[394356458,1763485833391,-500.0,0.00017973,2]
[394356461,1763485833404,-500.0,0.00017973,2]
[394356463,1763485833415,-500.0,0.00017973,2]
[394356465,1763485833428,-500.0,0.00017973,2]
[394356467,1763485833440,-500.0,0.00017973,2]
[394356469,1763485833452,-506.65983477,0.00017973,2]
[394356472,1763485833468,-500.0,0.00017984,2]
[394356475,1763485833480,-441.67548155,0.00017984,2]
[394356477,1763485833493,-500.0,0.00017984,2]
[394356479,1763485833506,-500.0,0.00017984,2]
[394356482,1763485833520,-500.0,0.00017984,2]
[394356484,1763485833533,-500.0,0.00017984,2]
[394356487,1763485833546,-500.0,0.00017984,2]
[394356489,1763485833558,-500.0,0.00017984,2]
[394356491,1763485833570,-500.0,0.00017984,2]
[394356494,1763485833582,-500.0,0.00017984,2]
[394356496,1763485833593,-500.0,0.00017984,2]
[394356498,1763485833604,-500.0,0.00017984,2]
[394356500,1763485833615,-500.0,0.00017984,2]
[394356503,1763485833627,-500.0,0.00017984,2]
[394356505,1763485833638,-500.0,0.00017984,2]
[394356507,1763485833650,-500.0,0.00017984,2]
[394356510,1763485833664,-500.0,0.00017984,2]
[394356512,1763485833676,-500.0,0.00017984,2]
[394356514,1763485833689,-500.0,0.00017984,2]
[394356517,1763485833703,-500.0,0.00017984,2]
[394356519,1763485833715,-500.0,0.00017984,2]
[394356522,1763485833727,-500.0,0.00017984,2]
[394356524,1763485833739,-500.0,0.00017984,2]
[394356526,1763485833751,-500.0,0.00017984,2]
[394356528,1763485833762,-500.0,0.00017984,2]
[394356546,1763485834038,-500.0,0.00017984,2]
[394356549,1763485834067,-500.0,0.00017984,2]
[394356550,1763485834077,-633.23341804,0.00017984,2]
[394356551,1763485834087,-500.0,0.00017984,2]
[394356552,1763485834096,-500.0,0.00017984,2]
[394356553,1763485834106,-500.0,0.00017984,2]
[394356554,1763485834118,-500.0,0.00017984,2]
[394356555,1763485834128,-500.0,0.00017984,2]
[394356556,1763485834138,-500.0,0.00017984,2]
[394356557,1763485834147,-500.0,0.00017984,2]
[394356558,1763485834157,-500.0,0.00017984,2]
[394356559,1763485834167,-500.0,0.00017984,2]
[394356560,1763485834176,-500.0,0.00017984,2]
[394356561,1763485834186,-500.0,0.00017984,2]
[394356562,1763485834195,-500.0,0.00017984,2]
[394356563,1763485834206,-500.0,0.00017984,2]
[394356564,1763485834215,-600.0,0.00017984,2]
[394356565,1763485834226,-500.0,0.00017984,2]
[394356566,1763485834235,-500.0,0.00017984,2]
[394356567,1763485834244,-500.0,0.00017984,2]
[394356568,1763485834253,-500.0,0.00017984,2]
[394356569,1763485834263,-500.0,0.00017984,2]
[394356570,1763485834272,-500.0,0.00017984,2]
[394356571,1763485834281,-500.0,0.00017984,2]
[394356572,1763485834291,-500.0,0.00017984,2]
[394356573,1763485834300,-500.0,0.00017984,2]
[394356574,1763485834312,-500.0,0.00017984,2]
[394356575,1763485834321,-500.0,0.00017984,2]
[394356576,1763485834331,-314.52381947,0.00017984,2]
[394356577,1763485834340,-151.0,0.00017984,2]
[394356578,1763485834350,-44435.46203045,0.00017985,2]
[394356579,1763485834365,-513.82452401,0.00017985,2]
[394356580,1763485834377,-272.9999999,0.00017985,2]
[394356584,1763485837640,-5717.90920731,0.00017985,2]
[394356585,1763485837693,-2432.9842022,0.00017985,2]
[394356586,1763485837746,-894.2688825,0.00017985,2]
[394356587,1763485837855,-1666.75126303,0.00017985,2]
[394356588,1763485837865,-44887.492595,0.00017985,2]
[394356589,1763485837875,-500.0,0.00017986,2]
[394356590,1763485837884,-161299.7983628,0.00017987,2]
[394356591,1763485837894,-1156.8620625,0.00017987,2]
[394356592,1763485837903,-7050.8337202,0.00017987,2]
[394356594,1763485837913,-151.0,0.00017997,2]
[394356595,1763485837922,-535.90375237,0.00017999,2]
[394356597,1763485837932,-500.0,0.00017999,2]
[394356599,1763485837942,-500.0,0.00017999,2]
[394356601,1763485837953,-173.13267448,0.00017999,2]
[394356603,1763485837962,-515266.7688794,0.00018,2]
[394356605,1763485837972,-151.0,0.00018,2]
[394356606,1763485837981,-200.0,0.00018,2]
[394356608,1763485837992,-751.75,0.00018003,2]
[394356609,1763485838002,-264.37836761,0.00018021,2]
[394356610,1763485838012,-27259.77498116,0.00018048,2]
[394356611,1763485838022,-166.66,0.00018097,2]
[394356612,1763485838033,-530.62,0.00018099,2]
[394356613,1763485838043,-200.0,0.0001818,2]
[394356614,1763485838053,-751.75,0.00018277,2]
[394356615,1763485838063,-1006.9975,0.00018299,2]
[394356616,1763485838074,-6791.87,0.00018356,2]
[394356617,1763485838084,-200.0,0.00018362,2]
[394356618,1763485838094,-152.75,0.000184,2]
[394356619,1763485838104,-500.0,0.00018438,2]
[394356620,1763485838114,-171.28,0.00018452,2]
[394356621,1763485838124,-500.0,0.00018521,2]
[394356622,1763485838133,-1000.0,0.00018521,2]
[394356623,1763485838145,-501.40044145,0.00018521,2]
[394356624,1763485838154,-823.86150375,0.00018521,2]
[394356625,1763485838164,-1000.0,0.00018521,2]
[394356626,1763485838173,-200.0,0.00018545,2]
[394356627,1763485838183,-751.75090228,0.00018551,2]
[394356628,1763485838193,-166.66,0.00018675,2]
[394356629,1763485838202,-200.0,0.00018731,2]
[394356630,1763485838211,-2426.51365,0.0001882,2]
[394356631,1763485838221,-288.25,0.00018826,2]
[394356632,1763485838230,-1000.0,0.00018826,2]
[394356633,1763485838240,-300.0,0.00018866,2]
[394356634,1763485838250,-15166.77048451,0.00018894,2]
[394356635,1763485838259,-281.0125173,0.00018985,2]
[394356636,1763485838269,-266.89323513,0.00019,2]
[394356637,1763485838279,-234.17295491,0.00019,2]
[394356638,1763485838289,-300.0,0.00019,2]
[394356639,1763485838300,-19948.82235358,0.00019,2]
[394356640,1763485838311,-1008.2246355,0.00019068,2]
[394356641,1763485838322,-812.29493623,0.00019068,2]
[394356642,1763485838332,-200.0,0.00019178,2]
[394356643,1763485838343,-166.66,0.00019253,2]
[394356644,1763485838355,-339.67569384,0.00019352,2]
[394356645,1763485838366,-587.0,0.00019356,2]
[394356646,1763485838377,-171.28,0.00019423,2]
[394356647,1763485838388,-19981.39061451,0.000195,7]
[394356648,1763485838398,-2351.0,0.00019551,2]
[394356649,1763485838408,-10068.18,0.00019726,2]
[394356650,1763485838419,-2426.51365,0.0001982,2]
[394356651,1763485838430,-166.66,0.00019832,2]
[394356652,1763485838440,-400.0,0.00019863,2]
[394356653,1763485838452,-412.93571702,0.0001998,2]
[394356654,1763485838462,-150.41,0.0001998,2]
[394356655,1763485838472,-500.0,0.00019989,2]
[394356656,1763485838482,-152009.23666006,0.0001999,2]
[394356657,1763485838492,-150.41,0.0001999,2]
[394356658,1763485838502,-1032.52553222,0.0002,2]
[394356659,1763485838512,-1521.7603343,0.0002,2]
[394356660,1763485838522,-23742.76649817,0.0002,5]
[394356661,1763485838535,-583.72879,0.0002,5]
[394356663,1763485839763,-1117.040873,0.0002,5]
[394356664,1763485839870,-10774.63,0.0002,5]
[394356708,1763485842875,-20921.46684409,0.0002,5]
[394356709,1763485842887,-11455.88315591,0.0002,5]
[394356710,1763485842899,-31999.79178753,0.0002,5]
[394356711,1763485842909,-3258.24746288,0.0002,4]
[394356712,1763485842919,-1241.96074959,0.0002,2]
[394356713,1763485842931,-42.97361773,0.0002,2]
[394356714,1763485842941,-1037.15874421,0.0002,2]
[394356715,1763485842950,-2842.22127548,0.0002,2]